bitfinex/quotes_BTCUSD_20241116
["timestamp","ask_amount","ask_price","bid_price","bid_amount"]
[1731799798525,0.20786255,90550.0,90549.0,0.0017118]
[1731799798727,0.36313394,90550.0,90549.0,0.0017118]
[1731799805710,0.49595348,90550.0,90549.0,0.0017118]
[1731799806144,0.36313394,90550.0,90549.0,0.0017118]
[1731799807902,0.31829855,90550.0,90549.0,0.0017118]
[1731799808754,0.0008559,90558.0,90549.0,0.0017118]
[1731799808984,0.0008559,90558.0,90552.0,0.0496]
[1731799809177,0.0008559,90558.0,90549.0,0.0017118]
[1731799809178,0.110436,90550.0,90549.0,0.0017118]
[1731799810081,0.10906255,90557.0,90549.0,0.0017118]
[1731799810082,0.0008559,90558.0,90549.0,0.0017118]
[1731799810336,0.1112829,90558.0,90552.0,0.110433]
[1731799810583,0.1112829,90558.0,90553.0,0.110432]
[1731799810812,0.1112829,90558.0,90550.0,0.220872]
[1731799810813,0.0008559,90558.0,90550.0,0.220872]
[1731799811028,0.110428,90557.0,90551.0,0.110434]
[1731799811235,0.220855,90557.0,90549.0,0.0017118]
[1731799811472,0.110429,90556.0,90549.0,0.0017118]
[1731799811688,0.110429,90556.0,90551.0,0.110434]
[1731799811898,0.11043,90555.0,90549.0,0.1121478]
[1731799812138,0.220866,90553.0,90549.0,0.0017118]
[1731799812370,0.133436,90550.0,90549.0,0.0017118]
[1731799812597,0.24249855,90550.0,90549.0,0.0017118]
[1731799813055,0.34749855,90550.0,90549.0,0.0017118]
[1731799813280,0.35249855,90550.0,90549.0,0.0017118]
[1731799813512,0.24206255,90550.0,90549.0,0.0017118]
[1731799813757,0.35249855,90550.0,90549.0,0.0017118]
[1731799813999,0.34749855,90550.0,90549.0,0.0017118]
[1731799814250,0.21949855,90550.0,90549.0,0.0017118]
[1731799817421,0.11043,90555.0,90550.0,0.110435]
[1731799817653,0.023,90556.0,90549.0,0.0017118]
[1731799817654,0.21949355,90554.0,90549.0,0.0017118]
[1731799817871,0.023,90556.0,90549.0,0.0017118]
[1731799817872,0.0008559,90558.0,90549.0,0.0017118]
[1731799818118,0.0017118,90550.0,90549.0,0.1121488]
[1731799819200,0.0017118,90550.0,90549.0,0.1617488]
[1731799820068,0.0017118,90550.0,90549.0,0.2442488]
[1731799821186,0.0017118,90550.0,90549.0,0.24645733]
[1731799824156,0.0017118,90550.0,90549.0,0.36051988]
[1731799824619,0.0017118,90550.0,90549.0,0.35831135]
[1731799826918,0.0017118,90550.0,90549.0,0.36331135]
[1731799828103,0.0008559,90558.0,90549.0,0.36331135]
[1731799828104,0.0008559,90558.0,90557.0,0.115427]
[1731799828342,0.0008559,90558.0,90557.0,0.48020909]
[1731799828601,0.0008559,90558.0,90549.0,0.0017118]
[1731799828602,0.09306684,90568.0,90567.0,0.238315]
[1731799828840,0.09306684,90568.0,90567.0,0.158315]
[1731799829079,0.24808524,90582.0,90573.0,0.110407]
[1731799829300,0.24808524,90582.0,90567.0,0.268729]
[1731799829301,0.35714779,90582.0,90567.0,0.0479]
[1731799829557,0.1104,90580.0,90569.0,0.220826]
[1731799829779,0.1104,90580.0,90573.0,0.110407]
[1731799830012,0.1104,90580.0,90574.0,0.110405]
[1731799830456,0.19136255,90582.0,90568.0,0.220828]
[1731799830669,0.30175955,90582.0,90576.0,0.110404]
[1731799831144,0.110398,90581.0,90576.0,0.110404]
[1731799832477,0.30175955,90582.0,90575.0,0.110405]
[1731799832695,0.19136255,90582.0,90571.0,0.220821]
[1731799832920,0.30175955,90582.0,90576.0,0.110404]
[1731799834254,0.30175955,90582.0,90567.0,0.0479]
[1731799834255,0.110414,90568.0,90567.0,0.0479]
[1731799834483,0.220809,90576.0,90562.0,0.16578524]
[1731799834698,0.10906255,90575.0,90562.0,0.16578524]
[1731799834950,0.110415,90567.0,90562.0,0.16578524]
[1731799835169,0.110415,90567.0,90562.0,0.27620624]
[1731799835392,0.110413,90569.0,90563.0,0.11042]
[1731799835817,0.220816,90573.0,90562.0,0.11042]
[1731799836031,0.10906255,90572.0,90562.0,0.11042]
[1731799836268,0.110416,90567.0,90560.0,0.110423]
[1731799836484,0.110416,90567.0,90559.0,0.220848]
[1731799836485,0.110416,90567.0,90561.0,0.110422]
[1731799837154,0.331232,90571.0,90564.0,0.110418]
[1731799837376,0.110413,90569.0,90564.0,0.110418]
[1731799838144,0.110413,90569.0,90559.0,0.220848]
[1731799838392,0.110413,90569.0,90560.0,0.220848]
[1731799838615,0.10906255,90570.0,90554.0,0.0475]
[1731799838616,0.12781954,90564.0,90554.0,0.0475]
[1731799838829,0.12781954,90564.0,90537.0,0.17078524]
[1731799838830,0.110435,90551.0,90548.0,0.16578524]
[1731799839047,0.10906255,90563.0,90548.0,0.16578524]
[1731799839048,0.220848,90560.0,90548.0,0.16578524]
[1731799839259,0.110431,90555.0,90549.0,0.1121488]
[1731799839704,0.110431,90555.0,90545.0,0.0475]
[1731799839705,0.110431,90555.0,90547.0,0.220879]
[1731799839942,0.110431,90555.0,90549.0,0.110436]
[1731799840394,0.110426,90559.0,90553.0,0.110432]
[1731799840627,0.22085,90559.0,90547.0,0.220879]
[1731799840842,0.110427,90558.0,90551.0,0.110434]
[1731799841297,0.110428,90556.0,90551.0,0.110434]
[1731799841770,0.110426,90558.0,90551.0,0.110434]
[1731799841992,0.110426,90558.0,90552.0,0.110433]
[1731799842434,0.11041,90572.0,90565.0,0.110417]
[1731799842646,0.16578524,90568.0,90561.0,0.0453]
[1731799842881,0.21946855,90575.0,90561.0,0.0453]
[1731799843127,0.21946855,90575.0,90568.0,0.110413]
[1731799843340,0.10906255,90575.0,90568.0,0.110413]
[1731799843589,0.10906255,90575.0,90561.0,0.0453]
[1731799843590,0.0017116,90582.0,90569.0,0.16578524]
[1731799843832,0.0017116,90582.0,90575.0,0.110405]
[1731799843833,0.1104,90580.0,90575.0,0.110405]
[1731799844037,0.10906255,90581.0,90574.0,0.110405]
[1731799844505,0.0017116,90582.0,90570.0,0.220823]
[1731799844715,0.11077415,90582.0,90577.0,0.110402]
[1731799844928,0.11077415,90582.0,90574.0,0.220813]
[1731799845160,0.11077415,90582.0,90571.0,0.0769]
[1731799845161,0.11077415,90582.0,90577.0,0.047002]
[1731799845411,0.11077415,90582.0,90572.0,0.220818]
[1731799845412,0.110399,90581.0,90575.0,0.110405]
[1731799845642,0.110399,90580.0,90575.0,0.110404]
[1731799846504,0.110399,90580.0,90571.0,0.0769]
[1731799846505,0.110407,90574.0,90571.0,0.0769]
[1731799846776,0.110407,90574.0,90565.0,0.220835]
[1731799846777,0.220815,90574.0,90565.0,0.110417]
[1731799847001,0.220815,90574.0,90560.0,0.220847]
[1731799847002,0.110413,90569.0,90563.0,0.27620524]
[1731799847217,0.10906255,90579.0,90563.0,0.16578524]
[1731799847446,0.110411,90571.0,90564.0,0.110418]
[1731799847660,0.110411,90571.0,90565.0,0.110417]
[1731799847898,0.220806,90577.0,90567.0,0.110414]
[1731799848126,0.110407,90574.0,90567.0,0.110414]
[1731799848849,0.32987155,90576.0,90567.0,0.110414]
[1731799849084,0.110408,90573.0,90567.0,0.110414]
[1731799849316,0.110408,90573.0,90555.0,0.22086]
[1731799849317,0.12781954,90568.0,90553.0,0.0453]
[1731799849558,0.10906255,90572.0,90562.0,0.16578524]
[1731799849794,0.10906255,90572.0,90553.0,0.0453]
[1731799850039,0.110423,90561.0,90555.0,0.27621424]
[1731799850263,0.110411,90570.0,90555.0,0.27621424]
[1731799850472,0.220821,90571.0,90553.0,0.0453]
[1731799850473,0.110422,90562.0,90553.0,0.0453]
[1731799850714,0.110422,90562.0,90556.0,0.110428]
[1731799851390,0.10906255,90569.0,90553.0,0.0453]
[1731799851391,0.10906255,90569.0,90561.0,0.220844]
[1731799851632,0.10906255,90569.0,90564.0,0.110418]
[1731799852373,0.21947555,90569.0,90560.0,0.110423]
[1731799853005,0.21947555,90569.0,90562.0,0.110421]
[1731799853447,0.10906255,90569.0,90559.0,0.22085]
[1731799853645,0.10906255,90569.0,90562.0,0.11042]
[1731799853856,0.10906255,90569.0,90559.0,0.22085]
[1731799854070,0.10906255,90569.0,90564.0,0.110418]
[1731799854719,0.10906255,90569.0,90556.0,0.0008557]
[1731799854929,0.265787,90585.0,90556.0,0.0008557]
[1731799854930,0.265787,90585.0,90558.0,0.16578524]
[1731799855150,0.16749664,90579.0,90578.0,0.110402]
[1731799855581,0.0017114,90579.0,90578.0,0.110402]
[1731799857796,0.0017114,90579.0,90578.0,0.11260981]
[1731799858016,0.0017114,90579.0,90578.0,0.110402]
[1731799858476,0.0017114,90579.0,90578.0,0.22446455]
[1731799858722,0.09220824,90601.0,90600.0,0.110375]
[1731799859386,0.001508,90607.0,90604.0,0.110369]
[1731799859838,0.001508,90607.0,90603.0,0.11037]
[1731799860512,0.001508,90607.0,90582.0,0.005]
[1731799860513,0.001508,90607.0,90604.0,0.11037]
[1731799860727,0.001508,90607.0,90590.0,0.16578524]
[1731799860728,0.001508,90607.0,90593.0,0.220767]
[1731799860969,0.110368,90606.0,90591.0,0.0469]
[1731799861186,0.110368,90606.0,90600.0,0.110374]
[1731799861443,0.110368,90606.0,90591.0,0.0469]
[1731799861689,0.001508,90607.0,90597.0,0.110377]
[1731799861939,0.12781954,90605.0,90591.0,0.0469]
[1731799862408,0.110368,90606.0,90591.0,0.0469]
[1731799862642,0.110368,90606.0,90600.0,0.110375]
[1731799862873,0.110368,90606.0,90594.0,0.220765]
[1731799863095,0.001508,90607.0,90594.0,0.220765]
[1731799863352,0.110369,90605.0,90594.0,0.220765]
[1731799863565,0.110369,90605.0,90599.0,0.110375]
[1731799864446,0.001508,90607.0,90597.0,0.220757]
[1731799864447,0.11037,90604.0,90597.0,0.110378]
[1731799864661,0.11037,90604.0,90596.0,0.22076]
[1731799864874,0.11037,90604.0,90597.0,0.110377]
[1731799865096,0.110372,90603.0,90597.0,0.110378]
[1731799865342,0.1120804,90605.0,90598.0,0.110376]
[1731799865561,0.11037,90604.0,90598.0,0.110376]
[1731799866207,0.220749,90601.0,90581.0,0.0463]
[1731799866440,0.10906255,90600.0,90590.0,0.16578524]
[1731799866671,0.110382,90594.0,90588.0,0.110389]
[1731799867150,0.11039,90588.0,90582.0,0.110396]
[1731799867427,0.11039,90588.0,90583.0,0.110394]
[1731799867428,0.110389,90588.0,90583.0,0.110394]
[1731799867876,0.22076,90596.0,90580.0,0.16578524]
[1731799868091,0.22076,90596.0,90584.0,0.110394]
[1731799868092,0.110388,90590.0,90584.0,0.110394]
[1731799868305,0.220784,90586.0,90572.0,0.0463]
[1731799868526,0.220784,90586.0,90578.0,0.16578524]
[1731799868744,0.023,90594.0,90572.0,0.0463]
[1731799868969,0.220772,90591.0,90572.0,0.0463]
[1731799869196,0.110394,90584.0,90578.0,0.110401]
[1731799869414,0.110394,90584.0,90579.0,0.1104]
[1731799869636,0.10906255,90590.0,90574.0,0.220813]
[1731799870092,0.023,90594.0,90585.0,0.220786]
[1731799870093,0.20894896,90598.0,90575.0,0.0022079]
[1731799870337,0.220749,90601.0,90572.0,0.0513]
[1731799870338,0.11038,90596.0,90589.0,0.110387]
[1731799870777,0.11038,90596.0,90572.0,0.16036255]
[1731799870778,0.10906255,90596.0,90572.0,0.0463]
[1731799871009,0.110397,90582.0,90578.0,0.16578524]
[1731799871256,0.110391,90587.0,90581.0,0.110398]
[1731799871485,0.110393,90586.0,90581.0,0.110398]
[1731799871978,0.110395,90584.0,90577.0,0.110402]
[1731799872232,0.16578524,90592.0,90572.0,0.0463]
[1731799872233,0.12781954,90590.0,90572.0,0.16578524]
[1731799872457,0.13206255,90589.0,90573.0,0.220816]
[1731799872668,0.110394,90585.0,90572.0,0.16578524]
[1731799872891,0.110394,90585.0,90579.0,0.1104]
[1731799873326,0.13206255,90589.0,90573.0,0.220816]
[1731799873548,0.05506255,90584.0,90569.0,0.16578524]
[1731799874043,0.17578524,90596.0,90569.0,0.16578524]
[1731799874044,0.220771,90592.0,90571.0,0.220821]
[1731799874264,0.220771,90592.0,90581.0,0.110397]
[1731799874265,0.11039,90588.0,90581.0,0.110397]
[1731799874486,0.110389,90589.0,90570.0,0.110411]
[1731799874711,0.110388,90590.0,90584.0,0.110394]
[1731799874936,0.110389,90589.0,90584.0,0.110394]
[1731799875155,0.11039,90588.0,90582.0,0.110396]
[1731799875381,0.220774,90590.0,90582.0,0.110396]
[1731799875595,0.110391,90587.0,90582.0,0.110396]
[1731799876053,0.16578524,90600.0,90581.0,0.0463]
[1731799876353,0.220771,90592.0,90582.0,0.220794]
[1731799876552,0.220771,90592.0,90585.0,0.110393]
[1731799876553,0.110387,90590.0,90585.0,0.110393]
[1731799876770,0.220771,90592.0,90583.0,0.110395]
[1731799876771,0.110388,90589.0,90583.0,0.110395]
[1731799877008,0.110388,90589.0,90581.0,0.0463]
[1731799877009,0.110388,90589.0,90582.0,0.220794]
[1731799877223,0.220755,90598.0,90582.0,0.220794]
[1731799877224,0.22076,90596.0,90582.0,0.220794]
[1731799877433,0.110383,90594.0,90588.0,0.110389]
[1731799877694,0.10906255,90599.0,90582.0,0.220794]
[1731799877932,0.22076,90596.0,90584.0,0.220789]
[1731799878162,0.110383,90594.0,90587.0,0.110389]
[1731799878392,0.22076,90596.0,90587.0,0.110389]
[1731799878393,0.110383,90593.0,90587.0,0.110389]
[1731799879048,0.110385,90592.0,90586.0,0.110391]
[1731799879310,0.110385,90592.0,90587.0,0.11039]
[1731799879768,0.32981555,90599.0,90583.0,0.16578524]
[1731799879975,0.32981555,90599.0,90590.0,0.110386]
[1731799880193,0.110382,90595.0,90589.0,0.110387]
[1731799880606,0.110382,90595.0,90586.0,0.220783]
[1731799880826,0.110382,90595.0,90589.0,0.110387]
[1731799881264,0.32981555,90599.0,90586.0,0.220783]
[1731799881265,0.110382,90594.0,90588.0,0.110389]
[1731799881552,0.110384,90593.0,90587.0,0.11039]
[1731799881786,0.11038,90596.0,90588.0,0.0767]
[1731799881994,0.001508,90607.0,90588.0,0.0767]
[1731799882226,0.27616024,90600.0,90594.0,0.110382]
[1731799882459,0.110371,90603.0,90588.0,0.0767]
[1731799882702,0.0017114,90605.0,90594.0,0.0489]
[1731799882943,0.0017114,90605.0,90603.0,0.11037]
[1731799883192,0.0017114,90605.0,90601.0,0.220746]
[1731799883193,0.0017114,90605.0,90602.0,0.110372]
[1731799883420,0.0017114,90605.0,90594.0,0.0489]
[1731799883421,0.110375,90600.0,90595.0,0.110381]
[1731799883878,0.0017114,90605.0,90589.0,0.220777]
[1731799884116,0.0017114,90605.0,90588.0,0.110389]
[1731799884117,0.10906255,90604.0,90588.0,0.110389]
[1731799884363,0.220748,90601.0,90587.0,0.220782]
[1731799884601,0.10906255,90604.0,90585.0,0.0489]
[1731799884846,0.0017114,90605.0,90586.0,0.00220763]
[1731799885074,0.0017114,90605.0,90598.0,0.110377]
[1731799885291,0.11037,90604.0,90599.0,0.110375]
[1731799885529,0.11037,90604.0,90598.0,0.110376]
[1731799885765,0.11037,90604.0,90596.0,0.220759]
[1731799886000,0.110372,90603.0,90598.0,0.110377]
[1731799887612,0.0017114,90605.0,90604.0,0.11037]
[1731799888086,0.0017114,90605.0,90603.0,0.1256]
[1731799888552,0.000856,90615.0,90597.0,0.0767]
[1731799888553,0.12781954,90613.0,90597.0,0.0767]
[1731799888794,0.110366,90607.0,90596.0,0.22076]
[1731799889020,0.0008566,90605.0,90599.0,0.220752]
[1731799889383,0.0008566,90605.0,90604.0,0.11037]
[1731799892682,0.0008566,90605.0,90604.0,0.15927]
[1731799901062,0.0008566,90605.0,90604.0,0.1601264]
[1731799903691,0.16578524,90620.0,90607.0,0.220733]
[1731799903892,0.110355,90617.0,90611.0,0.11036]
[1731799904788,0.110355,90617.0,90604.0,0.0497564]
[1731799905034,0.110355,90617.0,90612.0,0.11036]
[1731799905452,0.110355,90617.0,90604.0,0.0497564]
[1731799905453,0.16578524,90620.0,90607.0,0.220733]
[1731799905661,0.110354,90617.0,90611.0,0.11036]
[1731799905877,0.110356,90616.0,90611.0,0.11036]
[1731799906329,0.16578524,90620.0,90604.0,0.0497564]
[1731799906330,0.110353,90618.0,90610.0,0.220725]
[1731799906540,0.16578524,90620.0,90610.0,0.220725]
[1731799906541,0.110356,90616.0,90610.0,0.110362]
[1731799906761,0.110354,90618.0,90608.0,0.220731]
[1731799906982,0.110354,90618.0,90613.0,0.110358]
[1731799907626,0.220666,90635.0,90614.0,0.16578524]
[1731799907839,0.220666,90635.0,90621.0,0.220697]
[1731799907840,0.16578524,90627.0,90621.0,0.220697]
[1731799908049,0.16578524,90627.0,90622.0,0.220694]
[1731799908281,0.11034,90629.0,90624.0,0.110346]
[1731799908492,0.220675,90631.0,90622.0,0.220694]
[1731799908982,0.11034,90629.0,90624.0,0.110345]
[1731799909399,0.110338,90630.0,90622.0,0.110347]
[1731799909611,0.11034,90629.0,90622.0,0.110347]
[1731799910533,0.11034,90629.0,90624.0,0.110345]
[1731799910771,0.110341,90628.0,90622.0,0.110348]
[1731799911436,0.110341,90628.0,90613.0,0.077]
[1731799911437,0.10906255,90628.0,90613.0,0.077]
[1731799911651,0.12781954,90623.0,90604.0,0.0008564]
[1731799911860,0.11036,90613.0,90607.0,0.27615124]
[1731799912090,0.110361,90612.0,90607.0,0.27615124]
[1731799912329,0.16578524,90621.0,90604.0,0.0008564]
[1731799912557,0.331083,90612.0,90606.0,0.110367]
[1731799912762,0.331083,90612.0,90607.0,0.110366]
[1731799912763,0.110361,90612.0,90607.0,0.110366]
[1731799912975,0.220715,90615.0,90604.0,0.0008564]
[1731799913185,0.110361,90612.0,90605.0,0.110368]
[1731799913408,0.220704,90619.0,90604.0,0.0008564]
[1731799913628,0.10906255,90620.0,90604.0,0.0008564]
[1731799913629,0.10906255,90620.0,90607.0,0.2224456]
[1731799913867,0.0008563,90618.0,90610.0,0.110362]
[1731799914088,0.110357,90615.0,90610.0,0.110362]
[1731799914924,0.110355,90616.0,90608.0,0.220731]
[1731799915175,0.110357,90615.0,90610.0,0.110362]
[1731799916873,0.0008563,90618.0,90608.0,0.220731]
[1731799917084,0.0008563,90618.0,90609.0,0.110363]
[1731799917085,0.110357,90615.0,90609.0,0.110363]
[1731799917307,0.110357,90615.0,90610.0,0.110362]
[1731799917978,0.110356,90616.0,90610.0,0.110363]
[1731799918415,0.0008563,90618.0,90610.0,0.110362]
[1731799918627,0.38648424,90621.0,90609.0,0.220728]
[1731799918799,0.110356,90616.0,90609.0,0.331091]
[1731799919046,0.220701,90620.0,90609.0,0.110363]
[1731799919418,0.110356,90616.0,90607.0,0.0017126]
[1731799919628,0.110356,90616.0,90610.0,0.110363]
[1731799919789,0.110355,90617.0,90611.0,0.110361]
[1731799919995,0.110355,90616.0,90611.0,0.110361]
[1731799920636,0.220704,90619.0,90607.0,0.0017126]
[1731799920855,0.110363,90610.0,90607.0,0.0017126]
[1731799921074,0.110365,90608.0,90607.0,0.0017126]
[1731799921286,0.186765,90608.0,90607.0,0.0017126]
[1731799921481,0.110358,90614.0,90607.0,0.0017126]
[1731799921691,0.0764,90617.0,90607.0,0.0017126]
[1731799921692,0.10906255,90616.0,90607.0,0.0017126]
[1731799921930,0.110362,90611.0,90607.0,0.0017126]
[1731799922581,0.110363,90610.0,90607.0,0.0017126]
[1731799923465,0.110365,90609.0,90607.0,0.0017126]
[1731799923902,0.220718,90613.0,90607.0,0.0017126]
[1731799923903,0.110365,90608.0,90607.0,0.0017126]
[1731799930765,0.220721,90612.0,90607.0,0.0017126]
[1731799930978,0.110365,90608.0,90607.0,0.0017126]
[1731799931643,0.21942755,90608.0,90607.0,0.0017126]
[1731799931855,0.33600751,90608.0,90607.0,0.0017126]
[1731799932075,0.29852755,90608.0,90607.0,0.0017126]
[1731799933805,0.42634709,90608.0,90607.0,0.0017126]
[1731799936519,0.79587803,90608.0,90607.0,0.0017126]
[1731799937145,0.993382,90608.0,90607.0,0.0017126]
[1731799937782,0.79587803,90608.0,90607.0,0.0017126]
[1731799938645,0.43134709,90608.0,90607.0,0.0017126]
[1731799939728,0.57943085,90608.0,90607.0,0.0017126]
[1731799941158,0.90267211,90608.0,90607.0,0.0017126]
[1731799941398,0.94015207,90608.0,90607.0,0.0017126]
[1731799941846,0.98833941,90608.0,90607.0,0.0017126]
[1731799942056,0.95085945,90608.0,90607.0,0.0017126]
[1731799943640,0.110383,90593.0,90592.0,0.00165521]
[1731799943867,0.29644555,90593.0,90592.0,0.00165521]
[1731799944096,0.39505505,90593.0,90592.0,0.00165521]
[1731799944334,0.29644555,90593.0,90592.0,0.00165521]
[1731799947248,0.30144555,90593.0,90592.0,0.00165521]
[1731799947456,0.34744555,90593.0,90592.0,0.00165521]
[1731799947661,0.44599893,90593.0,90592.0,0.00165521]
[1731799948129,0.45244555,90593.0,90592.0,0.00165521]
[1731799948579,0.37544555,90593.0,90592.0,0.00165521]
[1731799948808,0.37544555,90593.0,90581.0,0.0017132]
[1731799948809,0.005,90589.0,90581.0,0.0017132]
[1731799949048,0.23821654,90582.0,90581.0,0.0017132]
[1731799949260,0.34727909,90582.0,90581.0,0.0017132]
[1731799951030,0.38475905,90582.0,90581.0,0.0017132]
[1731799952119,0.38975905,90582.0,90581.0,0.0017132]
[1731799952373,0.61319567,90582.0,90581.0,0.0017132]
[1731799952578,0.61975905,90582.0,90581.0,0.0017132]
[1731799954795,0.76741398,90582.0,90581.0,0.0017132]
[1731799955212,0.61975905,90582.0,90581.0,0.0017132]
[1731799956151,0.94531227,90582.0,90581.0,0.0017132]
[1731799956368,0.72976152,90582.0,90581.0,0.0017132]
[1731799956800,0.61727303,90582.0,90581.0,0.0017132]
[1731799957012,0.98025714,90582.0,90581.0,0.0017132]
[1731799957232,0.98016657,90582.0,90581.0,0.0017132]
[1731799958741,0.34522854,90572.0,90571.0,0.001713]
[1731799958971,0.45429109,90572.0,90571.0,0.001713]
[1731799959833,0.45229109,90572.0,90571.0,0.001713]
[1731799963582,0.37729109,90572.0,90571.0,0.001713]
[1731799963792,0.33888209,90572.0,90571.0,0.001713]
[1731799964848,0.44929109,90572.0,90571.0,0.001713]
[1731799965068,0.44729109,90572.0,90571.0,0.001713]
[1731799967598,0.31947155,90572.0,90571.0,0.001713]
[1731799967827,0.110409,90572.0,90571.0,0.001713]
[1731799969446,0.220801,90580.0,90571.0,0.001713]
[1731799969621,0.110403,90577.0,90573.0,0.0776]
[1731799970490,0.16578524,90589.0,90573.0,0.0776]
[1731799970707,0.16578524,90589.0,90574.0,0.0487]
[1731799970708,0.110403,90578.0,90574.0,0.0487]
[1731799971763,0.110405,90575.0,90574.0,0.0487]
[1731799974756,0.0017136,90577.0,90574.0,0.0487]
[1731799975213,0.1121166,90577.0,90574.0,0.0487]
[1731799975473,0.110404,90576.0,90574.0,0.0487]
[1731799976369,0.0017136,90577.0,90574.0,0.0487]
[1731799976578,0.0017136,90577.0,90575.0,0.110405]
[1731799977688,0.0017136,90577.0,90574.0,0.0487]
[1731799977689,0.0017136,90577.0,90576.0,0.110404]
[1731799978573,0.09049884,90589.0,90577.0,0.1263]
[1731799978781,0.110395,90584.0,90578.0,0.110401]
[1731799979216,0.110395,90584.0,90579.0,0.1104]
[1731799979640,0.331155,90592.0,90583.0,0.110395]
[1731799979842,0.110389,90589.0,90583.0,0.110395]
[1731799980286,0.10906255,90592.0,90580.0,0.220799]
[1731799980528,0.10906255,90592.0,90581.0,0.110397]
[1731799980529,0.110391,90587.0,90581.0,0.110397]
[1731799980730,0.110392,90586.0,90581.0,0.110397]
[1731799981591,0.220774,90590.0,90579.0,0.0487]
[1731799981842,0.110391,90587.0,90582.0,0.110396]
[1731799982053,0.110391,90587.0,90580.0,0.331197]
[1731799982465,0.220777,90589.0,90580.0,0.220799]
[1731799982575,0.110391,90587.0,90581.0,0.110397]
[1731799984367,0.110391,90587.0,90579.0,0.0487]
[1731799984830,0.110393,90586.0,90579.0,0.1591]
[1731799986146,0.110393,90585.0,90579.0,0.1591]
[1731799986380,0.110393,90585.0,90582.0,0.0008566]
[1731799987079,0.110387,90590.0,90584.0,0.110394]
[1731799987320,0.11039,90588.0,90583.0,0.1286]
[1731799987554,0.220774,90590.0,90583.0,0.1286]
[1731799988031,0.110391,90587.0,90583.0,0.1286]
[1731799988949,0.0017132,90593.0,90584.0,0.220789]
[1731799989182,0.0017132,90593.0,90584.0,0.005]
[1731799989423,0.1120972,90593.0,90588.0,0.110389]
[1731799989915,0.1120972,90593.0,90591.0,0.005]
[1731799989916,0.0017132,90593.0,90591.0,0.005]
[1731799990148,0.0017132,90593.0,90592.0,0.190885]
[1731799990625,0.0017132,90593.0,90592.0,0.243985]
[1731799993741,0.22072,90613.0,90592.0,0.243985]
[1731799993742,0.110365,90609.0,90602.0,0.110372]
[1731799993966,0.16578524,90603.0,90602.0,0.158472]
[1731799994173,0.110365,90609.0,90603.0,0.11037]
[1731799994616,0.110362,90611.0,90605.0,0.005]
[1731799994838,0.110359,90613.0,90606.0,0.110367]
[1731799995079,0.16578524,90624.0,90604.0,0.005]
[1731799995080,0.220704,90619.0,90604.0,0.005]
[1731799995284,0.110359,90613.0,90607.0,0.110366]
[1731799995758,0.10906255,90619.0,90604.0,0.005]
[1731799995998,0.10906255,90619.0,90604.0,0.11537]
[1731799996217,0.110365,90609.0,90604.0,0.005]
[1731799996663,0.220709,90617.0,90604.0,0.11537]
[1731799996886,0.110365,90608.0,90604.0,0.005]
[1731799997116,0.110363,90610.0,90604.0,0.005]
[1731799998195,0.220687,90626.0,90604.0,0.005]
[1731799998469,0.220687,90626.0,90603.0,0.301241]
[1731799998470,0.220698,90622.0,90614.0,0.005]
[1731799998717,0.16578524,90623.0,90614.0,0.005]
[1731799998718,0.1120636,90620.0,90615.0,0.1286]
[1731799999148,0.1120636,90620.0,90614.0,0.115357]
[1731799999383,0.1120636,90620.0,90611.0,0.220723]
[1731799999384,0.0017126,90620.0,90611.0,0.18017622]
[1731799999619,0.220705,90619.0,90598.0,0.220755]
[1731799999825,0.0017126,90620.0,90604.0,0.16578524]
[1731800000034,0.110357,90615.0,90605.0,0.220738]
[1731800000258,0.110357,90615.0,90606.0,0.220735]
[1731800000467,0.110357,90615.0,90608.0,0.110364]
[1731800000673,0.110357,90615.0,90599.0,0.10906255]
[1731800000674,0.110357,90615.0,90609.0,0.110363]
[1731800000887,0.110356,90616.0,90609.0,0.110364]
[1731800001148,0.0017126,90620.0,90582.0,0.0058566]
[1731800001149,0.16578524,90615.0,90582.0,0.0058566]
[1731800001415,0.110358,90614.0,90596.0,0.110379]
[1731800001658,0.110369,90605.0,90598.0,0.110377]
[1731800002346,0.110369,90605.0,90599.0,0.0451]
[1731800002575,0.110369,90605.0,90599.0,0.155476]
[1731800002813,0.00484112,90604.0,90600.0,0.110374]
[1731800003048,0.00484112,90604.0,90600.0,0.220749]
[1731800003253,0.00484112,90604.0,90600.0,0.110374]
[1731800003466,0.00484112,90604.0,90599.0,0.0451]
[1731800003912,0.00484112,90604.0,90599.0,0.155476]
[1731800005316,0.00484112,90604.0,90599.0,0.0451]
[1731800005538,0.110373,90602.0,90599.0,0.0451]
[1731800006411,0.00501937,90601.0,90599.0,0.0451]
[1731800006868,0.00484112,90604.0,90599.0,0.0451]
[1731800007107,0.00484112,90604.0,90602.0,0.110372]
[1731800007551,0.00484112,90604.0,90600.0,0.110374]
[1731800007773,0.00484112,90604.0,90601.0,0.110373]
[1731800008426,0.00484112,90604.0,90599.0,0.155476]
[1731800008640,0.220714,90615.0,90599.0,0.155476]
[1731800008641,0.110359,90613.0,90599.0,0.0451]
[1731800008884,0.110372,90603.0,90599.0,0.0451]
[1731800009754,0.110372,90603.0,90594.0,0.220763]
[1731800009985,0.110371,90604.0,90595.0,0.11038]
[1731800010221,0.110371,90603.0,90595.0,0.11038]
[1731800011285,0.0008566,90603.0,90593.0,0.220767]
[1731800011563,0.0008566,90603.0,90596.0,0.110379]
[1731800012924,0.1112276,90603.0,90596.0,0.110379]
[1731800014207,0.1112276,90603.0,90594.0,0.110382]
[1731800014414,0.1112276,90603.0,90591.0,0.0451]
[1731800014415,0.110374,90601.0,90592.0,0.110385]
[1731800014621,0.110376,90600.0,90592.0,0.110384]
[1731800014859,0.0008566,90603.0,90593.0,0.00220742]
[1731800015277,0.0008566,90603.0,90595.0,0.11038]
[1731800015278,0.110373,90602.0,90595.0,0.11038]
[1731800015501,0.110373,90602.0,90593.0,0.00220742]
[1731800015734,0.110375,90601.0,90593.0,0.11258942]
[1731800016887,0.110373,90602.0,90590.0,0.17742646]
[1731800017830,0.110373,90602.0,90591.0,0.0022074]